bitfinex-derivatives/quotes_ETHF0:USTF0_20250726
["timestamp","ask_amount","ask_price","bid_price","bid_amount"]
[1753490232115,1.6483558,3728.3,3728.2,1.7449]
[1753490232414,1.04521,3728.3,3728.2,1.7449]
[1753490232615,1.64812742,3728.3,3728.2,1.4465]
[1753490232817,1.64812742,3728.3,3728.2,0.7976]
[1753490234206,1.04521,3728.3,3728.2,0.7976]
[1753490235116,1.64769692,3728.3,3728.2,0.3108]
[1753490235312,1.04521,3728.3,3728.2,0.7976]
[1753490235519,1.04521,3728.3,3728.2,1.7449]
[1753490239612,4.54848,3728.7,3728.2,1.7449]
[1753490239613,0.3145,3728.6,3728.2,0.6828]
[1753490239819,3.2078,3728.7,3728.6,1.21907]
[1753490240016,3.2078,3728.7,3728.6,2.28117]
[1753490241521,3.5223,3728.7,3728.6,2.28117]
[1753490241816,3.5223,3728.7,3728.6,0.502]
[1753490241817,4.25295,3728.7,3728.6,0.502]
[1753490242012,4.25295,3728.7,3728.6,0.3108]
[1753490242419,0.5089,3728.3,3728.2,0.4868]
[1753490242722,1.04528,3727.8,3727.7,1.4341]
[1753490242916,1.04528,3727.8,3727.7,0.7976]
[1753490243117,1.04528,3727.8,3727.7,0.3108]
[1753490243720,1.04528,3727.8,3727.7,0.502]
[1753490244017,1.04528,3727.8,3727.7,1.5489]
[1753490244213,1.04528,3727.8,3727.7,1.7449]
[1753490245721,1.04528,3727.8,3727.7,0.7976]
[1753490246022,1.04528,3727.8,3727.7,0.3108]
[1753490246322,1.04528,3727.8,3727.7,0.502]
[1753490247118,1.04528,3727.8,3727.7,0.7976]
[1753490247425,1.04528,3727.8,3727.7,1.7449]
[1753490248618,4.25308,3727.8,3727.7,0.3108]
[1753490249720,0.1944,3727.2,3727.1,0.502]
[1753490249923,1.04537,3727.2,3727.1,0.502]
[1753490251019,1.04537,3727.2,3727.1,0.4868]
[1753490251225,1.04537,3727.2,3727.1,1.7449]
[1753490256227,3.522,3727.4,3727.3,0.5146]
[1753490256529,4.25564,3727.4,3727.3,1.7772]
[1753490257532,4.25564,3727.4,3726.8,1.2615]
[1753490257533,0.5114,3727.3,3726.8,1.2615]
[1753490257730,3.405,3726.9,3726.8,2.31373]
[1753490257930,3.94151,3726.9,3726.8,1.7772]
[1753490258232,4.25571,3726.9,3726.8,1.7772]
[1753490260332,1.04791,3726.9,3726.8,1.7772]
[1753490260733,1.04791,3726.9,3726.8,2.31373]
[1753490260933,0.73371,3726.9,3726.8,1.7772]
[1753490261334,1.04791,3726.9,3726.8,1.7772]
[1753490261835,4.25571,3726.9,3726.8,1.7772]
[1753490262135,1.04791,3726.9,3726.8,1.7772]
[1753490262737,4.25571,3726.9,3726.8,1.7772]
[1753490266239,3.74431,3726.9,3726.8,2.31373]
[1753490266738,3.2078,3726.9,3726.8,2.31373]
[1753490267134,1.9734,3727.7,3727.6,0.7126]
[1753490267334,5.77571045,3727.7,3727.6,1.7772]
[1753490267730,5.77571045,3727.7,3727.6,2.31361]
[1753490267731,3.2078,3727.7,3727.6,2.31361]
[1753490269738,4.46311,3728.3,3728.2,1.7772]
[1753490269938,5.05775684,3728.3,3728.2,1.7772]
[1753490270139,5.25495684,3728.3,3728.2,1.7772]
[1753490270341,2.56795684,3728.3,3728.2,1.7772]
[1753490271638,1.31364684,3728.3,3728.2,1.7772]
[1753490271939,0.719,3728.3,3728.2,1.7772]
[1753490272132,1.31408938,3728.3,3728.2,1.7772]
[1753490272335,1.31408938,3728.3,3728.2,2.31353]
[1753490272530,0.59508938,3728.3,3728.2,2.31353]
[1753490273042,1.13139938,3728.3,3728.2,2.31353]
[1753490273338,0.53631,3728.3,3728.2,2.31353]
[1753490273545,0.5363,3728.4,3728.2,2.31353]
[1753490273736,1.2553,3728.4,3728.3,1.7772]
[1753490274241,1.9733,3728.4,3728.3,1.7772]
[1753490275142,2.2744,3728.4,3728.3,1.7772]
[1753490276152,1.9733,3728.4,3728.3,1.7772]
[1753490278957,2.2744,3728.4,3728.3,1.0217]
[1753490279153,2.2744,3728.4,3728.3,0.3114]
[1753490279352,1.97338,3727.8,3727.7,1.4658]
[1753490279757,2.27448,3727.8,3727.7,0.7137]
[1753490279954,2.27453,3727.5,3727.4,1.0217]
[1753490280549,0.53645,3727.3,3727.2,1.44327812]
[1753490280756,1.22625,3727.3,3727.2,0.3114]
[1753490280955,1.22625,3727.3,3727.2,0.5094]
[1753490281157,1.22627,3727.2,3727.1,1.44327812]
[1753490281358,2.27457,3727.2,3727.1,1.44327812]
[1753490281852,2.27458,3727.1,3727.0,4.96247812]
[1753490282051,4.9459,3727.1,3726.8,1.44327812]
[1753490282356,2.27463,3726.8,3726.7,1.4669]
[1753490282860,2.27463,3726.8,3726.7,1.0217]
[1753490283466,2.27463,3726.8,3726.7,1.4669]
[1753490284259,2.27463,3726.8,3726.7,1.7772]
[1753490284463,1.97353,3726.8,3726.7,1.7772]
[1753490286261,1.97353,3726.8,3726.7,1.332]
[1753490286466,2.28173,3726.8,3726.7,1.0217]
[1753490286860,2.28173,3726.8,3726.7,1.4542]
[1753490287368,2.28173,3726.8,3726.7,0.5094]
[1753490287562,1.22247,3726.5,3726.4,0.6802]
[1753490287760,2.30287,3726.5,3726.4,0.9956]
[1753490288163,2.30287,3726.5,3726.4,1.4281]
[1753490290673,2.30287,3726.5,3726.4,0.9956]
[1753490291475,2.30287,3726.5,3726.4,1.4281]
[1753490292777,1.99467,3726.5,3726.4,1.7219]
[1753490299278,2.30287,3726.5,3726.4,0.9956]
[1753490299478,1.2225,3726.3,3726.2,0.33418564]
[1753490299678,2.3029,3726.3,3726.2,0.33418564]
[1753490300482,1.9947,3726.3,3726.2,1.74068564]
[1753490302976,2.3029,3726.3,3726.2,1.74068564]
[1753490303181,2.3029,3726.3,3726.2,1.01438564]
[1753490303389,2.3029,3726.3,3726.2,0.72888564]
[1753490303587,2.3029,3726.3,3726.2,0.53798564]
[1753490304186,2.3029,3726.3,3726.2,0.82348564]
[1753490304382,2.3029,3726.3,3726.2,1.44688564]
[1753490305282,1.9947,3726.3,3726.2,1.74068564]
[1753490305882,2.3029,3726.3,3726.2,1.74068564]
[1753490308887,1.9947,3726.3,3726.2,1.74068564]
[1753490310194,2.3029,3726.3,3726.2,1.74068564]
[1753490310587,2.3029,3726.3,3726.2,0.33418564]
[1753490310792,2.3029,3726.3,3726.2,0.01878564]
[1753490311393,2.89769692,3726.3,3726.2,0.01878564]
[1753490311796,2.89769692,3726.3,3726.2,0.33418564]
[1753490313298,2.89769692,3726.3,3726.2,0.82348564]
[1753490314091,2.89769692,3726.3,3726.2,0.01878564]
[1753490314497,2.89769692,3726.3,3726.2,0.33418564]
[1753490316200,2.89769692,3726.3,3726.2,0.53798564]
[1753490316402,2.89769692,3726.3,3726.2,0.85068564]
[1753490317495,2.89769692,3726.3,3726.2,1.04098564]
[1753490318101,2.89769692,3726.3,3726.2,1.47518564]
[1753490320602,2.89769692,3726.3,3726.2,1.76098564]
[1753490322298,2.58949692,3726.3,3726.2,1.76098564]
[1753490322995,1.41539692,3726.3,3726.2,1.76098564]
[1753490323200,1.13139692,3726.3,3726.2,1.76098564]
[1753490324004,1.57889692,3726.3,3726.2,1.76098564]
[1753490324303,2.57229692,3726.3,3726.2,1.76098564]
[1753490324605,2.88049692,3726.3,3726.2,1.76098564]
[1753490324805,2.57229692,3726.3,3726.2,1.76098564]
[1753490328208,2.57229692,3726.3,3726.2,5.64e-06]
[1753490328209,1.83779692,3726.3,3726.2,5.64e-06]
[1753490329703,10.32537576,3726.3,3726.2,5.64e-06]
[1753490332511,21.32337576,3726.3,3726.2,5.64e-06]
[1753490334814,0.53664,3726.0,3725.9,5.64e-06]
[1753490335114,1.53005,3725.9,3725.8,0.1986124]
[1753490335309,2.12484692,3725.9,3725.8,2.4e-06]
[1753490335517,6.41086921,3725.9,3725.8,2.4e-06]
[1753490338309,6.40916062,3725.9,3725.8,2.4e-06]
[1753490340414,0.53686,3724.5,3724.4,3.2078]
[1753490340717,0.53686,3724.5,3724.4,1.7326]
[1753490341710,0.53686,3724.6,3724.5,1.7326]
[1753490341918,3.2078,3724.8,3724.5,0.6728]
[1753490342113,0.53683,3724.7,3724.6,0.6256]
[1753490342420,0.53683,3724.7,3724.6,1.0126]
[1753490342616,0.53682,3724.8,3724.6,1.0126]
[1753490342822,14.74356,3725.2,3725.1,1.0126]
[1753490343115,3.2078,3725.7,3724.8,3.2078]
[1753490343317,0.53669,3725.7,3725.3,3.74453]
[1753490343519,0.53668,3725.8,3725.4,0.53672]
[1753490343825,0.53668,3725.7,3725.3,3.2078]
[1753490344124,0.3082,3725.9,3725.3,3.2078]
[1753490344315,0.8449,3725.6,3725.3,3.2078]
[1753490344619,0.3082,3725.5,3725.2,0.53675]
[1753490345119,0.84491,3725.5,3725.2,5.0]
[1753490345323,0.84491,3725.5,3725.4,0.0009]
[1753490345618,0.53678,3725.0,3724.9,3.2078]
[1753490345825,1.11588,3725.0,3724.9,0.0009]
[1753490346320,0.83068,3725.0,3724.9,0.0009]
[1753490347025,0.53684,3724.6,3724.5,3.2087]
[1753490347224,1.31734,3724.6,3724.5,3.2087]
[1753490347815,0.83074,3724.6,3724.5,3.2087]
[1753490348421,0.53684,3724.6,3724.5,3.2087]
[1753490349117,0.83074,3724.6,3724.5,3.2087]
[1753490349425,0.53684,3724.6,3724.5,3.2087]
[1753490350629,0.53684,3724.7,3724.5,3.2087]
[1753490350827,0.83071,3724.9,3724.6,0.53684]
[1753490351126,3.493,3725.3,3724.8,0.0009]
[1753490351322,0.5368,3724.9,3724.8,0.0009]
[1753490351731,3.5017,3725.3,3725.2,0.0009]
[1753490352029,3.74454,3725.3,3725.2,0.0009]
[1753490352522,4.03844,3725.3,3725.2,0.0009]
[1753490353120,4.32364,3725.3,3725.2,0.0009]
[1753490354630,1.11584,3725.3,3725.2,0.0009]
[1753490355438,0.83064,3725.3,3725.2,0.0009]
[1753490355638,0.2939,3725.3,3725.2,0.53766]
[1753490355936,0.2939,3725.4,3725.3,0.53764]
[1753490356138,0.2939,3725.4,3725.3,3.74544]
[1753490357033,0.83063,3725.4,3725.3,3.74544]
[1753490357237,0.2939,3725.4,3725.3,3.74544]
[1753490357839,0.2939,3725.7,3725.3,3.2087]
[1753490358142,5.18268,3725.8,3725.7,0.0009]
[1753490358342,5.77772179,3725.8,3725.7,0.53758]
[1753490358542,6.07162179,3725.8,3725.7,0.53758]
[1753490359143,6.07162179,3725.8,3725.7,0.0009]
[1753490359541,6.07162179,3725.8,3725.7,0.53758]
[1753490360447,6.07162179,3725.8,3725.7,0.0009]
[1753490361945,6.07162179,3725.8,3725.7,0.53758]
[1753490362145,5.53494179,3725.8,3725.7,0.53758]
[1753490362336,0.88894179,3725.8,3725.7,0.53758]
[1753490362542,0.2939,3725.8,3725.7,0.53758]
[1753490362740,1.7321,3725.8,3725.7,0.53758]
[1753490363545,1.7321,3725.8,3725.7,3.74538]
[1753490363845,0.2939,3725.8,3725.7,3.74538]
[1753490364046,0.7259,3726.1,3726.0,0.53754]
[1753490364047,0.5791,3726.1,3726.0,0.53754]
[1753490364250,1.17397136,3726.1,3726.0,0.53754]
[1753490364644,1.91200136,3726.1,3726.0,0.53754]
[1753490364946,2.86360136,3726.1,3726.0,0.53754]
[1753490365148,2.26873,3726.1,3726.0,0.53754]
[1753490365648,2.26873,3726.1,3726.0,0.0009]
[1753490366244,2.26877,3725.8,3725.7,3.74448]
[1753490366549,1.7321,3725.8,3725.7,0.53668]
[1753490366944,1.0944,3725.8,3725.7,0.53668]
[1753490367147,0.7805,3725.8,3725.7,0.53668]
[1753490368451,0.4953,3725.8,3725.7,0.53668]
[1753490368756,0.2939,3725.8,3725.7,0.53668]
[1753490370855,0.5791,3725.8,3725.7,0.53668]
[1753490371853,0.5791,3725.8,3725.7,0.53669]
[1753490372053,1.7321,3725.8,3725.7,3.74449]
[1753490372651,2.32673894,3725.8,3725.7,3.74449]
[1753490373750,2.32675907,3725.8,3725.7,3.74449]
[1753490374255,0.2939,3725.8,3725.7,3.74449]
[1753490374857,1.153,3726.4,3726.3,0.5366]
[1753490375060,1.74759361,3726.4,3726.3,0.5366]
[1753490375565,2.34969361,3726.4,3726.3,0.5366]
[1753490375954,2.88628361,3726.4,3726.3,0.5366]
[1753490376162,2.88628361,3726.4,3726.2,0.53661]
[1753490376463,2.91170361,3726.3,3726.1,0.53663]
[1753490376759,2.37509361,3726.2,3726.1,0.53663]
[1753490378669,1.7805,3726.1,3726.0,0.53664]
[1753490378860,0.7083,3726.0,3725.9,0.53665]
[1753490379163,2.37509361,3726.0,3725.9,0.53665]
[1753490379752,2.37509361,3726.0,3725.8,0.53667]
[1753490380055,2.37509361,3725.9,3725.8,0.53667]
[1753490380960,1.2728,3725.8,3725.7,3.2078]
[1753490381179,2.37509361,3725.8,3725.7,3.74448]
[1753490382168,2.91177361,3725.8,3725.7,3.2078]
[1753490382564,0.7083,3725.4,3725.3,3.74455]
[1753490382863,1.7805,3725.4,3725.3,3.74455]
[1753490383263,1.7805,3725.4,3725.3,3.74555]
[1753490384065,1.7805,3725.4,3725.3,5.18882812]
[1753490384365,2.31723,3725.4,3725.3,3.2088]
[1753490385367,1.7805,3725.4,3725.3,3.2088]
[1753490385568,1.7805,3725.4,3725.3,3.74555]
[1753490387165,2.31724,3725.4,3725.3,3.2088]
[1753490387470,2.31724,3725.4,3725.3,3.2078]
[1753490387763,0.84268,3725.1,3725.0,1.44327812]
[1753490387966,2.31728,3725.1,3725.0,1.44327812]
[1753490388865,1.7805,3725.1,3725.0,1.98006812]
[1753490389866,1.7805,3725.1,3725.0,1.98106812]
[1753490390066,1.7805,3725.1,3725.0,1.44427812]
[1753490390266,2.31728,3725.1,3725.0,1.44327812]
[1753490390467,0.5368,3725.0,3724.9,4.65107812]
[1753490390671,2.3173,3725.0,3724.9,4.65107812]
[1753490391267,2.3173,3725.0,3724.9,3.2078]
[1753490391876,1.7805,3725.0,3724.9,3.2078]
[1753490392678,2.3173,3725.0,3724.9,3.2078]
[1753490392872,2.3173,3725.0,3724.9,3.2088]
[1753490393972,2.3173,3725.0,3724.9,3.2078]
[1753490396377,4.5496,3725.6,3724.7,0.001]
[1753490396378,1.24513,3724.8,3724.7,0.001]
[1753490397079,2.31733,3724.8,3724.7,0.001]
[1753490398380,2.31733,3724.8,3724.7,0.53784]
[1753490398878,1.7805,3724.8,3724.7,0.53784]
[1753490401878,0.8027,3724.8,3724.7,0.53784]
[1753490402078,3.2078,3726.1,3725.0,0.001]
[1753490402382,2.00223,3725.5,3725.4,3.2078]
[1753490402582,0.7083,3725.3,3725.2,0.53676]
[1753490402781,1.7805,3725.3,3725.2,0.53676]
[1753490403574,2.31726,3725.3,3725.2,0.53676]
[1753490403979,1.7805,3725.3,3725.2,0.53676]
[1753490404687,1.7805,3725.3,3725.2,0.53776]
[1753490405078,1.7805,3725.3,3725.2,0.53866]
[1753490405875,0.315,3725.3,3725.2,0.53866]
[1753490406079,1.7411,3726.1,3726.0,0.0023]
[1753490406284,2.33688281,3726.1,3726.0,3.74675]
[1753490406584,0.601,3726.1,3726.0,3.74675]
[1753490406979,0.4482,3726.4,3726.0,3.74675]
[1753490406980,24.64755639,3727.1,3726.0,3.2087]
[1753490407180,1.1401,3726.7,3726.6,3.74667]
[1753490407579,0.1994,3726.7,3726.6,3.74667]
[1753490407779,0.8004,3726.7,3726.6,3.74667]
[1753490408483,1.2929,3726.7,3726.6,3.74667]
[1753490409886,0.601,3726.7,3726.6,3.74667]
[1753490411275,0.8004,3726.7,3726.6,3.74667]
[1753490411476,1.2929,3726.7,3726.6,3.74667]
[1753490411681,1.7411,3726.7,3726.6,3.74667]
[1753490412687,0.601,3726.7,3726.6,3.74667]
[1753490413186,1.7411,3726.7,3726.6,3.74667]
[1753490416486,1.7411,3726.7,3726.6,3.74527]
[1753490419293,1.7411,3726.7,3726.6,3.74667]
[1753490420787,3.2078,3727.8,3726.6,3.74667]
[1753490420788,3.2078,3727.8,3726.7,1.34137]
[1753490420993,1.7411,3727.3,3727.2,3.2078]
[1753490421194,1.7411,3727.3,3727.2,3.74428]
[1753490421595,1.2929,3727.3,3727.2,3.74428]
[1753490422588,0.2971,3727.3,3727.2,3.74428]
[1753490424196,0.601,3727.3,3727.2,3.74428]
[1753490424495,1.7411,3727.3,3727.2,3.74428]
[1753490425400,1.2929,3727.3,3727.2,3.74428]
[1753490425594,0.8004,3727.3,3727.2,3.74428]
[1753490425797,0.601,3727.3,3727.2,3.74428]
[1753490426601,0.8004,3727.3,3727.2,3.74428]
[1753490426801,1.7411,3727.3,3727.2,3.74428]
[1753490437307,2.27756,3727.3,3727.2,3.2078]
[1753490437509,1.7717,3727.0,3726.9,0.53652]
[1753490437911,1.7717,3727.0,3726.9,1.98219833]
[1753490439112,0.53669,3725.7,3725.3,0.2967]
[1753490439304,3.74449,3725.7,3725.6,0.23939552]
[1753490440909,0.53674,3725.4,3725.2,0.7032]
[1753490441109,0.53674,3725.4,3725.3,1.4639]
[1753490441307,0.53674,3725.4,3725.3,1.7606]
[1753490441710,0.53673,3725.5,3725.4,1.7606]
[1753490441912,0.53672,3725.6,3725.4,1.7606]
[1753490442102,0.53672,3725.6,3725.5,0.8069]
[1753490442504,3.7445,3725.6,3725.5,0.8069]
[1753490443410,4.38725152,3725.6,3725.5,0.2967]
[1753490444113,3.7445,3725.6,3725.5,0.2967]
[1753490444313,3.7445,3725.6,3725.5,0.6094]
[1753490444718,3.7445,3725.6,3725.5,0.8069]
[1753490445218,3.7445,3725.6,3725.5,1.7606]
[1753490445618,3.2078,3725.6,3725.5,1.7606]
[1753490445820,0.53666,3726.0,3725.9,0.7032]
[1753490446111,1.18620239,3726.0,3725.9,1.7606]
[1753490446514,0.64954239,3726.0,3725.9,1.7606]
[1753490446817,0.53665,3726.0,3725.9,0.7032]
[1753490447514,0.53665,3726.0,3725.9,1.7606]
[1753490447917,0.53665,3726.0,3725.9,0.8069]
[1753490449823,0.53665,3726.0,3725.9,1.3126]
[1753490450120,0.53665,3726.0,3725.9,1.7606]
[1753490450715,3.74444,3726.1,3725.9,1.0159]
[1753490450910,3.2078,3726.1,3726.0,1.7606]
[1753490451116,3.74443,3726.1,3726.0,1.7606]
[1753490451516,3.2078,3726.1,3726.0,2.29725]
[1753490452014,3.2078,3726.5,3726.4,2.29717]
[1753490452524,4.51107,3726.5,3726.4,1.7606]
[1753490453621,3.9745,3726.5,3726.4,2.29719]
[1753490453924,3.2078,3726.5,3726.4,2.29719]
[1753490454117,3.74437,3726.5,3726.4,1.7606]
[1753490454318,4.51107,3726.5,3726.4,1.7606]
[1753490456629,4.51107,3726.5,3726.4,0.2967]
[1753490456920,4.51107,3726.5,3726.1,0.6094]
[1753490456921,1.30332,3726.2,3726.1,0.6094]
[1753490458720,1.30332,3726.2,3726.1,1.0053]
[1753490459020,1.30332,3726.2,3726.1,1.3126]
[1753490459219,1.30332,3726.2,3726.1,1.7606]
[1753490460823,1.30332,3726.2,3726.1,1.3126]
[1753490461425,1.30332,3726.2,3726.1,0.8069]
[1753490461626,1.30332,3726.2,3726.1,0.6094]
[1753490461827,1.30332,3726.2,3726.1,0.2967]
[1753490462026,0.83286,3725.9,3725.8,0.6094]
[1753490462217,0.83286,3725.9,3725.8,0.2967]
[1753490462218,4.51116,3725.9,3725.8,0.2967]
[1753490462920,0.83292,3725.5,3725.4,1.0053]
[1753490463124,1.30342,3725.5,3725.4,1.0053]
[1753490463426,1.30342,3725.5,3725.4,1.3126]
[1753490463628,1.30342,3725.5,3725.4,1.7606]
[1753490464028,0.7667,3725.5,3725.4,1.7606]
[1753490464327,1.30342,3725.5,3725.4,1.7606]
[1753490465125,1.44802,3725.5,3725.4,1.7606]
[1753490465328,1.53742,3725.5,3725.4,1.7606]
[1753490465728,5.39622421,3725.5,3725.4,0.2967]
[1753490468430,5.39622421,3725.5,3725.4,0.09528732]
[1753490470222,5.39622421,3725.5,3725.4,0.45338732]
[1753490470934,5.39622421,3725.5,3725.4,0.65498732]
[1753490472825,1.92356,3725.2,3725.1,0.5597]
[1753490473030,1.92359,3725.0,3724.9,0.5597]
[1753490473233,5.13139,3725.0,3724.9,0.5597]
[1753490473429,5.13139,3725.0,3724.9,0.6512]
[1753490474628,5.77820677,3725.0,3724.9,0.6512]
[1753490475035,5.77820677,3725.0,3724.9,0.2931]
[1753490475231,1.92363,3724.7,3724.6,1.8]
[1753490475534,1.72123,3724.7,3724.6,1.8]
[1753490477032,1.92363,3724.7,3724.6,1.3734]
[1753490477432,1.92363,3724.7,3724.6,1.0855]
[1753490477939,1.92363,3724.7,3724.6,1.3734]
[1753490478136,1.92363,3724.7,3724.6,1.8]
[1753490479135,1.72123,3724.7,3724.6,1.8]
[1753490479740,1.48883,3724.7,3724.6,1.8]
[1753490481937,0.53683,3724.7,3724.6,1.8]
[1753490483741,1.48883,3724.7,3724.6,1.8]
[1753490484831,1.72123,3724.7,3724.6,1.8]
[1753490485037,1.92363,3724.7,3724.6,0.6512]
[1753490485737,1.92363,3724.7,3724.6,0.8528]
[1753490485942,1.72123,3724.7,3724.6,1.8]
[1753490493147,2.36873263,3724.7,3724.6,1.8]
[1753490495647,0.64750263,3724.7,3724.6,1.8]
[1753490495848,2.31523263,3724.7,3724.6,1.8]
[1753490496145,2.51733263,3724.7,3724.6,1.59855252]
[1753490497237,2.31523263,3724.7,3724.6,1.59855252]
[1753490497436,2.11653263,3724.7,3724.6,1.10385252]
[1753490497642,2.31523263,3724.7,3724.6,1.61895252]
[1753490503743,2.31523263,3724.7,3724.6,1.7961]
[1753490505652,2.51723263,3724.7,3724.6,1.7961]
[1753490506150,2.51723263,3724.7,3724.6,0.3154]
[1753490506451,2.51723263,3724.7,3724.6,1e-05]
[1753490506653,2.24589,3724.3,3724.2,0.8074]
[1753490506947,6.10119263,3724.3,3724.2,1.5221]
[1753490508551,6.10119263,3724.3,3724.2,1.8375]
[1753490513744,6.10119263,3724.3,3723.9,0.80923577]
[1753490513745,1.67553,3724.0,3723.9,0.80923577]
[1753490513949,1.67553,3724.0,3723.2,3.22660078]
[1753490513950,2.31653,3723.3,3723.2,0.73350078]
[1753490515954,2.31653,3723.3,3723.2,1.85630078]
[1753490523851,3.2078,3723.9,3723.3,1.65983]
[1753490524160,3.2078,3723.9,3723.8,1.8375]
[1753490524161,3.74475,3723.9,3723.8,1.8375]
[1753490524358,0.53698,3723.7,3723.6,0.4736]
[1753490524555,1.24191,3723.5,3723.4,0.7612]
[1753490524860,6.16727893,3723.5,3723.4,0.4274]
[1753490525063,2.33833,3723.3,3723.2,1.24620078]
[1753490525263,2.33833,3723.3,3723.2,0.21760078]
[1753490526660,2.33833,3723.3,3723.2,1.80370078]
[1753490527565,2.98105172,3723.3,3723.2,1.80370078]
[1753490528262,2.33833,3723.3,3723.2,1.80370078]
[1753490529058,0.53703,3723.3,3723.2,1.80370078]
[1753490530760,0.53703,3723.4,3723.3,1.7849]
[1753490531263,0.83063,3723.4,3723.3,1.7849]
[1753490531456,0.53703,3723.4,3723.3,1.7849]
[1753490532558,3.74481,3723.5,3723.4,1.0786]
[1753490532760,3.2078,3723.5,3723.4,1.7849]
[1753490532962,3.2078,3723.5,3723.4,2.32192]
[1753490533364,3.74481,3723.5,3723.4,1.7849]
[1753490534565,3.93871,3723.5,3723.4,1.7849]
[1753490534772,5.54611,3723.5,3723.4,1.7849]
[1753490535373,1.31081,3723.5,3723.4,1.7849]
[1753490535574,4.51861,3723.5,3723.4,1.7849]
[1753490535772,4.22501,3723.5,3723.4,1.7849]
[1753490535980,3.74481,3723.5,3723.4,1.7849]
[1753490537380,5.54611,3723.5,3723.4,1.7849]
[1753490537777,5.54611,3723.5,3723.4,2.32192]
[1753490538375,2.33833,3723.3,3723.2,0.65110078]
[1753490538778,2.33833,3723.3,3723.2,0.21760078]
[1753490539779,2.33833,3723.3,3723.2,0.01880078]
[1753490541083,2.98300233,3723.3,3723.2,0.01880078]
[1753490545680,0.53715,3722.5,3722.4,1.4703]
[1753490545986,2.33845,3722.5,3722.4,1.7849]
[1753490546986,1.38575,3722.5,3722.4,1.7849]
[1753490547174,1.02465,3722.5,3722.4,1.7849]
[1753490547580,2.33845,3722.5,3722.4,1.7849]
[1753490548487,0.53715,3722.5,3722.4,1.7849]
[1753490550986,3.74493,3722.7,3722.6,1.7849]
[1753490551382,3.2078,3722.7,3722.6,1.7849]
[1753490551586,0.53709,3723.0,3722.9,1.4986]
[1753490551786,1.18233052,3723.0,3722.9,1.7849]
[1753490555095,2.56083052,3723.0,3722.9,1.7849]
[1753490555396,2.99303052,3723.0,3722.9,1.7849]
[1753490556082,2.99303052,3723.0,3722.9,1.4703]
[1753490556483,1.26303,3722.7,3722.6,0.7353]
[1753490556689,2.20737052,3722.7,3722.6,1.8272]
[1753490557090,2.99367052,3722.7,3722.6,1.8272]
[1753490557789,2.56147052,3722.7,3722.6,1.8272]
[1753490558696,1.90827052,3722.7,3722.6,1.8272]
[1753490559396,2.20737052,3722.7,3722.6,1.8272]
[1753490559592,2.99367052,3722.7,3722.6,1.8272]
[1753490560789,2.45654052,3722.7,3722.6,2.36434]
[1753490561093,0.6532,3723.0,3722.9,1.8272]
[1753490561390,1.29794718,3723.0,3722.9,1.8272]
[1753490561590,2.45604718,3723.0,3722.9,2.36429]
[1753490561790,0.64474718,3723.0,3722.9,2.36429]
[1753490563600,2.20682718,3723.0,3722.9,2.36429]
[1753490563792,2.99312718,3723.0,3722.9,2.36429]
[1753490564099,2.99312718,3723.0,3722.9,1.74339]
[1753490564298,2.99312718,3723.0,3722.9,2.07109]
[1753490564798,2.99312718,3723.0,3722.9,2.36429]
[1753490564991,2.45604718,3723.0,3722.9,2.36429]
[1753490565593,2.45604718,3723.0,3722.9,2.06699]
[1753490565796,2.45604718,3723.0,3722.9,2.36429]
[1753490566800,2.10194718,3723.0,3722.9,2.36429]
[1753490567099,1.37664718,3723.0,3722.9,2.36429]
[1753490570699,0.94444718,3723.0,3722.9,2.36429]
[1753490571501,0.64474718,3723.0,3722.9,2.36429]
[1753490572195,5.0191,3723.6,3723.5,1.27231]
[1753490572398,5.66756121,3723.6,3723.5,2.36421]
[1753490573397,5.66756121,3723.6,3723.5,1.33571]
[1753490573699,5.66756121,3723.6,3723.5,0.53701]
[1753490573898,5.66756121,3723.6,3723.5,0.74191]
[1753490574200,2.45976121,3723.6,3723.5,1.21291]
[1753490574401,2.45976121,3723.6,3723.5,2.36421]
[1753490577793,1.8113,3723.6,3723.5,2.36421]
[1753490579694,3.2078,3724.1,3723.7,1.34244]
[1753490579896,1.5122,3723.9,3723.8,1.56546]
[1753490580100,2.15994652,3723.9,3723.8,1.56546]
[1753490580299,2.45904652,3723.9,3723.8,2.03646]
[1753490580506,2.45904652,3723.9,3723.8,2.36416]
[1753490581811,2.45904652,3723.9,3723.8,2.07096]
[1753490582000,1.8113,3723.9,3723.8,2.07096]
[1753490582201,1.8113,3723.9,3723.8,2.36416]
[1753490582403,0.6532,3723.9,3723.8,2.36416]
[1753490582809,1.8113,3723.9,3723.8,2.36416]
[1753490583003,1.8113,3724.2,3724.1,1.27222]
[1753490583301,0.2991,3725.2,3725.1,0.53677]
[1753490583502,2.4584022,3725.2,3725.1,2.36397]
[1753490584210,1.8113,3725.2,3725.1,2.36397]
[1753490585302,0.53672,3725.5,3725.4,0.53673]
[1753490585303,1.425,3725.5,3725.4,0.53673]
[1753490585502,1.8451,3725.5,3725.4,2.34443]
[1753490585702,1.0329,3725.5,3725.4,2.34443]
[1753490585902,1.8451,3725.7,3725.6,2.3444]
[1753490588611,1.8451,3725.7,3725.6,2.0533]
[1753490588810,1.8451,3725.7,3725.6,1.2693]
[1753490589005,1.8451,3725.7,3725.6,0.5367]
[1753490589211,1.8451,3725.4,3725.3,1.31085]
[1753490589508,0.2,3725.9,3725.6,1.26929]
[1753490589509,1.8451,3725.7,3725.6,1.26929]
[1753490589707,1.8451,3725.7,3725.6,2.34439]
[1753490590908,1.3781,3725.7,3725.6,2.34439]
[1753490591307,1.8451,3725.7,3725.6,2.34439]
[1753490591708,1.8451,3725.7,3725.6,2.05329]
[1753490592016,1.8451,3725.4,3725.3,0.2084]